[Event "Titled Tuesday Blitz May 03 Early 2022"]
[White "Tanenbaum, Zachary"]
[Black "Aaditya Dhingra"]
[WhiteFideId "2060850"]
[BlackFideId "25678191"]
[WhiteElo "2168"]
[BlackElo "1849"]
[Result "1/2-1/2"]
[Round "04"]
[TimeControl "180+1"]
[Date "2022.05.03"]
[WhiteClock "0:00:09"]
[BlackClock "0:00:14"]

1. e4 {[%clk 0:02:59]}  e5 {[%clk 0:02:58]} 2. Nf3 {[%clk 0:03:00]}  Nc6 {[%clk 0:02:59]} 3. Bc4 {[%clk 0:03:00]}  Nf6 {[%clk 0:02:58]} 4. d3 {[%clk 0:03:00]}  Be7 {[%clk 0:02:58]} 5. O-O {[%clk 0:02:59]}  d6 {[%clk 0:02:57]} 6. a4 {[%clk 0:02:59]}  O-O {[%clk 0:02:57]} 7. Re1 {[%clk 0:02:59]}  Na5 {[%clk 0:02:57]} 8. Ba2 {[%clk 0:03:00]}  c5 {[%clk 0:02:57]} 9. Nbd2 {[%clk 0:02:59]}  h6 {[%clk 0:02:56]} 10. c3 {[%clk 0:02:59]}  Qc7 {[%clk 0:02:53]} 11. b4 {[%clk 0:02:47]}  Nc6 {[%clk 0:02:52]} 12. b5 {[%clk 0:02:41]}  Nd8 {[%clk 0:02:51]} 13. Bb2 {[%clk 0:02:31]}  Be6 {[%clk 0:02:49]} 14. Bxe6 {[%clk 0:02:31]}  Nxe6 {[%clk 0:02:45]} 15. Rc1 {[%clk 0:02:27]}  a6 {[%clk 0:02:40]} 16. Qb3 {[%clk 0:02:23]}  Nf4 {[%clk 0:02:37]} 17. Qc4 {[%clk 0:02:16]}  Nd7 {[%clk 0:02:30]} 18. d4 {[%clk 0:01:56]}  Nb6 {[%clk 0:02:30]} 19. Qf1 {[%clk 0:01:55]}  Nxa4 {[%clk 0:02:30]} 20. Ba1 {[%clk 0:01:55]}  Bf6 {[%clk 0:02:14]} 21. Rb1 {[%clk 0:01:21]}  axb5 {[%clk 0:02:09]} 22. Qxb5 {[%clk 0:01:20]}  Rfb8 {[%clk 0:01:57]} 23. g3 {[%clk 0:01:16]}  Ra5 {[%clk 0:01:48]} 24. Qf1 {[%clk 0:01:05]}  Ne6 {[%clk 0:01:42]} 25. Nc4 {[%clk 0:01:02]}  Ra6 {[%clk 0:01:39]} 26. dxe5 {[%clk 0:00:55]}  dxe5 {[%clk 0:01:38]} 27. Ne3 {[%clk 0:00:52]}  Ng5 {[%clk 0:01:06]} 28. Nxg5 {[%clk 0:00:50]}  Bxg5 {[%clk 0:01:07]} 29. Nd5 {[%clk 0:00:50]}  Qc6 {[%clk 0:01:05]} 30. c4 {[%clk 0:00:23]}  Bf6 {[%clk 0:00:57]} 31. f4 {[%clk 0:00:22]}  Re8 {[%clk 0:00:56]} 32. Nxf6+ {[%clk 0:00:16]}  gxf6 {[%clk 0:00:48]} 33. Qh3 {[%clk 0:00:13]}  Nb6 {[%clk 0:00:41]} 34. Qg4+ {[%clk 0:00:10]}  Kh8 {[%clk 0:00:40]} 35. Qh4 {[%clk 0:00:11]}  Kg7 {[%clk 0:00:39]} 36. fxe5 {[%clk 0:00:09]}  fxe5 {[%clk 0:00:38]} 37. Rf1 {[%clk 0:00:10]}  Nxc4 {[%clk 0:00:36]} 38. Qg4+ {[%clk 0:00:10]}  Qg6 {[%clk 0:00:35]} 39. Qxg6+ {[%clk 0:00:09]}  Rxg6 {[%clk 0:00:35]} 40. Rxb7 {[%clk 0:00:10]}  Nd6 {[%clk 0:00:34]} 41. Rc7 {[%clk 0:00:10]}  c4 {[%clk 0:00:33]} 42. Bc3 {[%clk 0:00:10]}  Rf6 {[%clk 0:00:30]} 43. Re1 {[%clk 0:00:09]}  Nb5 {[%clk 0:00:28]} 44. Rxc4 {[%clk 0:00:09]}  Nxc3 {[%clk 0:00:28]} 45. Rxc3 {[%clk 0:00:10]}  Rd8 {[%clk 0:00:28]} 46. Rc2 {[%clk 0:00:10]}  Rd4 {[%clk 0:00:27]} 47. Kg2 {[%clk 0:00:10]}  Rfd6 {[%clk 0:00:26]} 48. Ree2 {[%clk 0:00:10]}  Kf6 {[%clk 0:00:25]} 49. Rc5 {[%clk 0:00:11]}  Ke6 {[%clk 0:00:25]} 50. Rf2 {[%clk 0:00:11]}  Rd2 {[%clk 0:00:24]} 51. Rxd2 {[%clk 0:00:11]}  Rxd2+ {[%clk 0:00:24]} 52. Kh3 {[%clk 0:00:12]}  Rd4 {[%clk 0:00:23]} 53. Rc6+ {[%clk 0:00:12]}  Ke7 {[%clk 0:00:20]} 54. Rxh6 {[%clk 0:00:12]}  Rxe4 {[%clk 0:00:20]} 55. Kg2 {[%clk 0:00:13]}  Rd4 {[%clk 0:00:19]} 56. h4 {[%clk 0:00:13]}  Kf8 {[%clk 0:00:19]} 57. Ra6 {[%clk 0:00:12]}  Kg7 {[%clk 0:00:18]} 58. Kf3 {[%clk 0:00:12]}  Rd3+ {[%clk 0:00:18]} 59. Kg4 {[%clk 0:00:12]}  f5+ {[%clk 0:00:18]} 60. Kxf5 {[%clk 0:00:09]}  Rxg3 {[%clk 0:00:17]} 61. Kxe5 {[%clk 0:00:09]}  Rg4 {[%clk 0:00:17]} 62. h5 {[%clk 0:00:08]}  Rg5+ {[%clk 0:00:16]} 63. Kf4 {[%clk 0:00:08]}  Rxh5 {[%clk 0:00:16]} 64. Ra7+ {[%clk 0:00:09]}  Kf8 {[%clk 0:00:16]} 65. Ra8+ {[%clk 0:00:08]}  Ke7 {[%clk 0:00:16]} 66. Kg4 {[%clk 0:00:08]}  Rc5 {[%clk 0:00:15]} 67. Kf4 {[%clk 0:00:09]}  Kd7 {[%clk 0:00:14]} 68. Ke4 {[%clk 0:00:09]}  Rc8 {[%clk 0:00:14]} 69. Rxc8 {[%clk 0:00:09]}  Kxc8 {[%clk 0:00:14]} 1/2-1/2


[Site "https://www.chess.com"]

[Event "Titled Tuesday Blitz May 03 Early 2022"]
[White "Tatarinov, Dmitry"]
[Black "Ramirez Vido, Robert Yorisan"]
[WhiteFideId "24160067"]
[BlackFideId "3513823"]
[WhiteElo "2302"]
[BlackElo "2297"]
[Result "1-0"]
[Round "04"]
[TimeControl "180+1"]
[Date "2022.05.03"]
[WhiteClock "0:00:32"]
[BlackClock "0:00:02"]

1. e4 {[%clk 0:02:59]}  d6 {[%clk 0:03:00]} 2. d4 {[%clk 0:02:59]}  Nf6 {[%clk 0:03:00]} 3. Nc3 {[%clk 0:02:59]}  g6 {[%clk 0:03:01]} 4. h4 {[%clk 0:02:59]}  c5 {[%clk 0:02:59]} 5. dxc5 {[%clk 0:02:58]}  Qa5 {[%clk 0:02:58]} 6. Bd2 {[%clk 0:02:58]}  Qxc5 {[%clk 0:02:56]} 7. Be3 {[%clk 0:02:56]}  Qb4 {[%clk 0:02:55]} 8. Qd4 {[%clk 0:02:53]}  Qxd4 {[%clk 0:02:44]} 9. Bxd4 {[%clk 0:02:54]}  Bg7 {[%clk 0:02:43]} 10. Nd5 {[%clk 0:02:54]}  Nxd5 {[%clk 0:02:19]} 11. Bxg7 {[%clk 0:02:55]}  Rg8 {[%clk 0:02:19]} 12. Bd4 {[%clk 0:02:51]}  Nb4 {[%clk 0:02:15]} 13. Kd2 {[%clk 0:02:47]}  Be6 {[%clk 0:02:13]} 14. b3 {[%clk 0:02:39]}  Nd7 {[%clk 0:02:05]} 15. c4 {[%clk 0:02:33]}  Nc6 {[%clk 0:01:57]} 16. Bc3 {[%clk 0:02:27]}  Nc5 {[%clk 0:01:53]} 17. Ke3 {[%clk 0:02:26]}  f6 {[%clk 0:01:47]} 18. Ne2 {[%clk 0:02:25]}  Kf7 {[%clk 0:01:43]} 19. Nf4 {[%clk 0:02:25]}  Ne5 {[%clk 0:01:32]} 20. Be2 {[%clk 0:02:24]}  Rac8 {[%clk 0:01:28]} 21. Nxe6 {[%clk 0:02:23]}  Kxe6 {[%clk 0:01:28]} 22. Rac1 {[%clk 0:02:21]}  Kf7 {[%clk 0:01:26]} 23. g3 {[%clk 0:02:18]}  Nc6 {[%clk 0:01:13]} 24. h5 {[%clk 0:02:16]}  g5 {[%clk 0:01:10]} 25. Bg4 {[%clk 0:02:16]}  Rc7 {[%clk 0:01:03]} 26. h6 {[%clk 0:02:15]}  Ne5 {[%clk 0:01:00]} 27. Bh5+ {[%clk 0:02:14]}  Ke6 {[%clk 0:00:58]} 28. Be2 {[%clk 0:02:08]}  Kd7 {[%clk 0:00:50]} 29. Rcg1 {[%clk 0:01:58]}  Nf7 {[%clk 0:00:42]} 30. f4 {[%clk 0:01:58]}  e5 {[%clk 0:00:30]} 31. Bg4+ {[%clk 0:01:54]}  Ke7 {[%clk 0:00:29]} 32. Bf5 {[%clk 0:01:54]}  gxf4+ {[%clk 0:00:27]} 33. gxf4 {[%clk 0:01:54]}  Rxg1 {[%clk 0:00:28]} 34. Rxg1 {[%clk 0:01:53]}  Nxh6 {[%clk 0:00:27]} 35. Bxh7 {[%clk 0:01:45]}  Kf8 {[%clk 0:00:24]} 36. Rg6 {[%clk 0:01:41]}  Rxh7 {[%clk 0:00:23]} 37. Rxf6+ {[%clk 0:01:41]}  Ke7 {[%clk 0:00:23]} 38. Rg6 {[%clk 0:01:34]}  exf4+ {[%clk 0:00:17]} 39. Kxf4 {[%clk 0:01:35]}  Rf7+ {[%clk 0:00:17]} 40. Ke3 {[%clk 0:01:35]}  Rh7 {[%clk 0:00:16]} 41. e5 {[%clk 0:01:26]}  dxe5 {[%clk 0:00:12]} 42. Bxe5 {[%clk 0:01:27]}  Nd7 {[%clk 0:00:12]} 43. Bf4 {[%clk 0:01:21]}  Nf5+ {[%clk 0:00:12]} 44. Ke4 {[%clk 0:01:21]}  Rf7 {[%clk 0:00:12]} 45. Bg5+ {[%clk 0:01:16]}  Kf8 {[%clk 0:00:09]} 46. Kd5 {[%clk 0:01:13]}  Nb6+ {[%clk 0:00:09]} 47. Ke5 {[%clk 0:01:08]}  Ne7 {[%clk 0:00:09]} 48. Bh6+ {[%clk 0:01:01]}  Ke8 {[%clk 0:00:09]} 49. Rg2 {[%clk 0:00:56]}  Rh7 {[%clk 0:00:09]} 50. Be3 {[%clk 0:00:55]}  Nc6+ {[%clk 0:00:09]} 51. Kd6 {[%clk 0:00:52]}  Rd7+ {[%clk 0:00:09]} 52. Kc5 {[%clk 0:00:52]}  Ne5 {[%clk 0:00:09]} 53. Kb5 {[%clk 0:00:44]}  Re7 {[%clk 0:00:05]} 54. Bc5 {[%clk 0:00:42]}  Re6 {[%clk 0:00:04]} 55. Rg8+ {[%clk 0:00:41]}  Kf7 {[%clk 0:00:04]} 56. Rf8+ {[%clk 0:00:41]}  Kg6 {[%clk 0:00:05]} 57. Rb8 {[%clk 0:00:39]}  Ned7 {[%clk 0:00:05]} 58. Rxb7 {[%clk 0:00:35]}  Re5 {[%clk 0:00:06]} 59. b4 {[%clk 0:00:36]}  Nxc5 {[%clk 0:00:04]} 60. bxc5 {[%clk 0:00:36]}  Nc8 {[%clk 0:00:04]} 61. Rc7 {[%clk 0:00:35]}  Nd6+ {[%clk 0:00:04]} 62. Kb4 {[%clk 0:00:34]}  Nf5 {[%clk 0:00:04]} 63. Rxa7 {[%clk 0:00:34]}  Nd4 {[%clk 0:00:02]} 64. Rd7 {[%clk 0:00:33]}  Kf6 {[%clk 0:00:02]} 65. Rxd4 {[%clk 0:00:32]} 1-0


[Site "https://www.chess.com"]

[Event "Titled Tuesday Blitz May 03 Early 2022"]
[White "Thybo, Jesper Sondergaard"]
[Black "Petre, Nad-Titus"]
[WhiteFideId "1438832"]
[BlackFideId "1204165"]
[WhiteElo "2316"]
[BlackElo "2354"]
[Result "1-0"]
[Round "04"]
[TimeControl "180+1"]
[Date "2022.05.03"]
[WhiteClock "0:00:17"]
[BlackClock "0:00:02"]

1. Nf3 {[%clk 0:03:00]}  Nf6 {[%clk 0:02:58]} 2. b3 {[%clk 0:03:01]}  g6 {[%clk 0:02:58]} 3. Bb2 {[%clk 0:03:01]}  Bg7 {[%clk 0:02:59]} 4. g3 {[%clk 0:03:01]}  O-O {[%clk 0:03:00]} 5. Bg2 {[%clk 0:03:02]}  d5 {[%clk 0:03:00]} 6. O-O {[%clk 0:03:02]}  c5 {[%clk 0:03:01]} 7. e3 {[%clk 0:03:02]}  Nc6 {[%clk 0:03:01]} 8. Ne5 {[%clk 0:03:02]}  Ne8 {[%clk 0:02:50]} 9. Nxc6 {[%clk 0:02:59]}  bxc6 {[%clk 0:02:51]} 10. Bxg7 {[%clk 0:02:58]}  Kxg7 {[%clk 0:02:43]} 11. c4 {[%clk 0:02:58]}  e5 {[%clk 0:02:40]} 12. Nc3 {[%clk 0:02:55]}  Nc7 {[%clk 0:02:34]} 13. d3 {[%clk 0:02:48]}  Be6 {[%clk 0:02:25]} 14. Rc1 {[%clk 0:02:42]}  Qd6 {[%clk 0:02:19]} 15. Na4 {[%clk 0:02:36]}  d4 {[%clk 0:02:01]} 16. Qd2 {[%clk 0:02:34]}  Rab8 {[%clk 0:01:54]} 17. Rfe1 {[%clk 0:02:10]}  Bd7 {[%clk 0:01:32]} 18. Qa5 {[%clk 0:02:02]}  Ne6 {[%clk 0:01:32]} 19. exd4 {[%clk 0:01:49]}  exd4 {[%clk 0:01:26]} 20. Bh3 {[%clk 0:01:41]}  Ng5 {[%clk 0:01:03]} 21. Bg2 {[%clk 0:01:35]}  Ne6 {[%clk 0:01:03]} 22. Re2 {[%clk 0:01:30]}  f5 {[%clk 0:01:02]} 23. Rce1 {[%clk 0:01:27]}  Rbe8 {[%clk 0:00:50]} 24. Re5 {[%clk 0:01:06]}  f4 {[%clk 0:00:48]} 25. Qxa7 {[%clk 0:00:29]}  f3 {[%clk 0:00:20]} 26. Bh3 {[%clk 0:00:25]}  Ra8 {[%clk 0:00:11]} 27. Qb7 {[%clk 0:00:21]}  Rfb8 {[%clk 0:00:07]} 28. Rxe6 {[%clk 0:00:20]}  Rxb7 {[%clk 0:00:01]} 29. Rxd6 {[%clk 0:00:18]}  Bxh3 {[%clk 0:00:02]} 30. Rxc6 {[%clk 0:00:17]} 1-0


[Site "https://www.chess.com"]

[Event "Titled Tuesday Blitz May 03 Early 2022"]
[White "Toncheva, Nadya"]
[Black "Subaste, Arman"]
[WhiteFideId "2924056"]
[BlackFideId "5221080"]
[WhiteElo "1884"]
[BlackElo "1856"]
[Result "0-1"]
[Round "04"]
[TimeControl "180+1"]
[Date "2022.05.03"]
[WhiteClock "0:00:03"]
[BlackClock "0:00:20"]

1. e4 {[%clk 0:02:58]}  g6 {[%clk 0:02:58]} 2. d4 {[%clk 0:02:57]}  Bg7 {[%clk 0:02:59]} 3. c4 {[%clk 0:02:58]}  d6 {[%clk 0:02:58]} 4. Nc3 {[%clk 0:02:58]}  Nc6 {[%clk 0:02:59]} 5. Be3 {[%clk 0:02:56]}  e5 {[%clk 0:02:58]} 6. d5 {[%clk 0:02:56]}  Nce7 {[%clk 0:02:59]} 7. Bd3 {[%clk 0:02:54]}  f5 {[%clk 0:02:59]} 8. exf5 {[%clk 0:02:54]}  Nxf5 {[%clk 0:02:57]} 9. Nf3 {[%clk 0:02:40]}  Nxe3 {[%clk 0:02:51]} 10. fxe3 {[%clk 0:02:41]}  Bh6 {[%clk 0:02:51]} 11. Qe2 {[%clk 0:02:35]}  Nf6 {[%clk 0:02:51]} 12. O-O {[%clk 0:02:27]}  O-O {[%clk 0:02:50]} 13. h3 {[%clk 0:02:21]}  Qe7 {[%clk 0:02:44]} 14. Nd2 {[%clk 0:02:18]}  Bd7 {[%clk 0:02:39]} 15. Nde4 {[%clk 0:02:14]}  Nh5 {[%clk 0:02:38]} 16. b4 {[%clk 0:01:47]}  Qh4 {[%clk 0:02:25]} 17. Kh2 {[%clk 0:01:38]}  Nf6 {[%clk 0:01:36]} 18. Nxf6+ {[%clk 0:01:36]}  Rxf6 {[%clk 0:01:37]} 19. Rxf6 {[%clk 0:01:30]}  Qxf6 {[%clk 0:01:37]} 20. Rf1 {[%clk 0:01:31]}  Qg5 {[%clk 0:01:36]} 21. Ne4 {[%clk 0:01:29]}  Qe7 {[%clk 0:01:34]} 22. c5 {[%clk 0:01:24]}  Rf8 {[%clk 0:01:33]} 23. cxd6 {[%clk 0:01:06]}  cxd6 {[%clk 0:01:31]} 24. Rf3 {[%clk 0:00:51]}  a6 {[%clk 0:01:16]} 25. Qf2 {[%clk 0:00:49]}  Rxf3 {[%clk 0:01:10]} 26. Qxf3 {[%clk 0:00:49]}  Kg7 {[%clk 0:01:08]} 27. g4 {[%clk 0:00:44]}  b6 {[%clk 0:01:04]} 28. Kg3 {[%clk 0:00:43]}  a5 {[%clk 0:01:00]} 29. bxa5 {[%clk 0:00:42]}  bxa5 {[%clk 0:01:01]} 30. h4 {[%clk 0:00:40]}  Kg8 {[%clk 0:00:59]} 31. Qf6 {[%clk 0:00:32]}  Bf8 {[%clk 0:00:56]} 32. a3 {[%clk 0:00:22]}  Bc8 {[%clk 0:00:46]} 33. Bb5 {[%clk 0:00:19]}  Bb7 {[%clk 0:00:45]} 34. Bc6 {[%clk 0:00:17]}  Ba6 {[%clk 0:00:45]} 35. g5 {[%clk 0:00:10]}  Bd3 {[%clk 0:00:44]} 36. Qxe7 {[%clk 0:00:09]}  Bxe7 {[%clk 0:00:44]} 37. Nc3 {[%clk 0:00:09]}  Bd8 {[%clk 0:00:36]} 38. Kf3 {[%clk 0:00:09]}  Bb6 {[%clk 0:00:35]} 39. Nb5 {[%clk 0:00:07]}  Bc5 {[%clk 0:00:34]} 40. Nc7 {[%clk 0:00:06]}  Bxa3 {[%clk 0:00:33]} 41. Ne8 {[%clk 0:00:04]}  Bc2 {[%clk 0:00:30]} 42. Nc7 {[%clk 0:00:04]}  Bc5 {[%clk 0:00:28]} 43. Na6 {[%clk 0:00:04]}  Bb4 {[%clk 0:00:27]} 44. Ke2 {[%clk 0:00:03]}  Bb3 {[%clk 0:00:24]} 45. Kd3 {[%clk 0:00:03]}  Be1 {[%clk 0:00:21]} 46. h5 {[%clk 0:00:02]}  gxh5 {[%clk 0:00:21]} 47. Be8 {[%clk 0:00:03]}  h4 {[%clk 0:00:20]} 0-1


[Site "https://www.chess.com"]

[Event "Titled Tuesday Blitz May 03 Early 2022"]
[White "Turutin, Alexander"]
[Black "Sebag, Marie"]
[WhiteFideId "4180623"]
[BlackFideId "617822"]
[WhiteElo "2402"]
[BlackElo "2440"]
[Result "1-0"]
[Round "04"]
[TimeControl "180+1"]
[Date "2022.05.03"]
[WhiteClock "0:00:09"]
[BlackClock "0:00:01"]

1. e4 {[%clk 0:02:54]}  c5 {[%clk 0:02:58]} 2. Nf3 {[%clk 0:02:53]}  d6 {[%clk 0:02:57]} 3. d4 {[%clk 0:02:53]}  cxd4 {[%clk 0:02:57]} 4. Nxd4 {[%clk 0:02:53]}  Nf6 {[%clk 0:02:58]} 5. Nc3 {[%clk 0:02:54]}  a6 {[%clk 0:02:58]} 6. g3 {[%clk 0:02:52]}  g6 {[%clk 0:02:57]} 7. Bg2 {[%clk 0:02:52]}  Bg7 {[%clk 0:02:57]} 8. O-O {[%clk 0:02:52]}  O-O {[%clk 0:02:58]} 9. h3 {[%clk 0:02:44]}  Nc6 {[%clk 0:02:53]} 10. Nxc6 {[%clk 0:02:29]}  bxc6 {[%clk 0:02:53]} 11. e5 {[%clk 0:02:30]}  dxe5 {[%clk 0:02:52]} 12. Qxd8 {[%clk 0:02:11]}  Rxd8 {[%clk 0:02:51]} 13. Bxc6 {[%clk 0:02:12]}  Bxh3 {[%clk 0:02:50]} 14. Re1 {[%clk 0:02:12]}  Rab8 {[%clk 0:02:30]} 15. Ba4 {[%clk 0:01:24]}  Ng4 {[%clk 0:02:11]} 16. Bb3 {[%clk 0:01:15]}  h5 {[%clk 0:01:53]} 17. Ne4 {[%clk 0:01:14]}  Nh6 {[%clk 0:01:41]} 18. Bd2 {[%clk 0:00:58]}  Bf5 {[%clk 0:01:27]} 19. Ba5 {[%clk 0:00:57]}  Rdc8 {[%clk 0:01:18]} 20. Rad1 {[%clk 0:00:46]}  Bg4 {[%clk 0:00:44]} 21. Rd2 {[%clk 0:00:44]}  Nf5 {[%clk 0:00:39]} 22. c3 {[%clk 0:00:28]}  Bh6 {[%clk 0:00:32]} 23. Rd7 {[%clk 0:00:25]}  Nd4 {[%clk 0:00:30]} 24. Rxe7 {[%clk 0:00:19]}  Nf3+ {[%clk 0:00:27]} 25. Kf1 {[%clk 0:00:19]}  Nxe1 {[%clk 0:00:24]} 26. Kxe1 {[%clk 0:00:20]}  Rxb3 {[%clk 0:00:17]} 27. axb3 {[%clk 0:00:20]}  Rb8 {[%clk 0:00:18]} 28. b4 {[%clk 0:00:19]}  Bf8 {[%clk 0:00:18]} 29. Ra7 {[%clk 0:00:19]}  Rb5 {[%clk 0:00:16]} 30. Bd8 {[%clk 0:00:16]}  Bg7 {[%clk 0:00:13]} 31. Ra8 {[%clk 0:00:16]}  Be6 {[%clk 0:00:07]} 32. Ng5 {[%clk 0:00:07]}  Bd5 {[%clk 0:00:04]} 33. Rc8 {[%clk 0:00:05]}  Bb7 {[%clk 0:00:05]} 34. Rc7 {[%clk 0:00:05]}  e4 {[%clk 0:00:04]} 35. Nxf7 {[%clk 0:00:04]}  e3 {[%clk 0:00:05]} 36. fxe3 {[%clk 0:00:04]}  Bf3 {[%clk 0:00:05]} 37. Kf2 {[%clk 0:00:04]}  Bg4 {[%clk 0:00:05]} 38. Ng5 {[%clk 0:00:04]}  Rf5+ {[%clk 0:00:04]} 39. Kg2 {[%clk 0:00:04]}  Rf8 {[%clk 0:00:04]} 40. Be7 {[%clk 0:00:04]}  Re8 {[%clk 0:00:05]} 41. Bc5 {[%clk 0:00:04]}  Be5 {[%clk 0:00:04]} 42. Ra7 {[%clk 0:00:03]}  Bf6 {[%clk 0:00:04]} 43. Nh7 {[%clk 0:00:02]}  Bg7 {[%clk 0:00:04]} 44. Kf2 {[%clk 0:00:02]}  Rd8 {[%clk 0:00:04]} 45. Bd4 {[%clk 0:00:03]}  Bxd4 {[%clk 0:00:02]} 46. cxd4 {[%clk 0:00:04]}  Rd6 {[%clk 0:00:02]} 47. e4 {[%clk 0:00:04]}  Rc6 {[%clk 0:00:02]} 48. Ke3 {[%clk 0:00:05]}  Rc2 {[%clk 0:00:03]} 49. e5 {[%clk 0:00:05]}  Rxb2 {[%clk 0:00:03]} 50. Kf4 {[%clk 0:00:05]}  Rb3 {[%clk 0:00:03]} 51. Kg5 {[%clk 0:00:06]}  Rxg3 {[%clk 0:00:03]} 52. Kxg6 {[%clk 0:00:07]}  Be2+ {[%clk 0:00:02]} 53. Kf6 {[%clk 0:00:07]}  Rf3+ {[%clk 0:00:02]} 54. Ke6 {[%clk 0:00:07]}  Bc4+ {[%clk 0:00:02]} 55. Kd6 {[%clk 0:00:08]}  h4 {[%clk 0:00:01]} 56. Nf6+ {[%clk 0:00:09]} 1-0


[Site "https://www.chess.com"]

[Event "Titled Tuesday Blitz May 03 Early 2022"]
[White "Varshini, V"]
[Black "Todorovic, Bojan"]
[WhiteFideId "5091241"]
[BlackFideId "917087"]
[WhiteElo "1948"]
[BlackElo "2266"]
[Result "1-0"]
[Round "04"]
[TimeControl "180+1"]
[Date "2022.05.03"]
[WhiteClock "0:00:07"]
[BlackClock "0:00:02"]

1. e4 {[%clk 0:03:00]}  e5 {[%clk 0:02:57]} 2. Nf3 {[%clk 0:03:00]}  Nc6 {[%clk 0:02:56]} 3. Bb5 {[%clk 0:02:59]}  Nf6 {[%clk 0:02:55]} 4. Qe2 {[%clk 0:02:59]}  d6 {[%clk 0:02:52]} 5. O-O {[%clk 0:02:57]}  Be7 {[%clk 0:02:50]} 6. c3 {[%clk 0:02:56]}  O-O {[%clk 0:02:49]} 7. Rd1 {[%clk 0:02:56]}  Bd7 {[%clk 0:02:37]} 8. d4 {[%clk 0:02:39]}  a6 {[%clk 0:02:27]} 9. Bc4 {[%clk 0:02:22]}  Bg4 {[%clk 0:02:15]} 10. h3 {[%clk 0:02:05]}  Bh5 {[%clk 0:02:13]} 11. d5 {[%clk 0:01:07]}  Nb8 {[%clk 0:02:09]} 12. Nbd2 {[%clk 0:00:59]}  Nbd7 {[%clk 0:01:58]} 13. Nf1 {[%clk 0:00:58]}  Nc5 {[%clk 0:01:54]} 14. Ng3 {[%clk 0:00:58]}  Bg6 {[%clk 0:01:53]} 15. Bd3 {[%clk 0:00:53]}  Nxd3 {[%clk 0:01:50]} 16. Rxd3 {[%clk 0:00:52]}  c6 {[%clk 0:01:45]} 17. dxc6 {[%clk 0:00:44]}  bxc6 {[%clk 0:01:45]} 18. Nxe5 {[%clk 0:00:43]}  Qc7 {[%clk 0:01:18]} 19. Nxg6 {[%clk 0:00:43]}  hxg6 {[%clk 0:01:17]} 20. Bf4 {[%clk 0:00:43]}  Nd7 {[%clk 0:01:12]} 21. Rad1 {[%clk 0:00:43]}  Ne5 {[%clk 0:01:11]} 22. R3d2 {[%clk 0:00:41]}  Rfd8 {[%clk 0:01:06]} 23. Be3 {[%clk 0:00:39]}  Bh4 {[%clk 0:00:53]} 24. Nf1 {[%clk 0:00:38]}  f5 {[%clk 0:00:39]} 25. exf5 {[%clk 0:00:31]}  gxf5 {[%clk 0:00:39]} 26. Bf4 {[%clk 0:00:30]}  Bf6 {[%clk 0:00:32]} 27. Nh2 {[%clk 0:00:29]}  Rab8 {[%clk 0:00:17]} 28. Nf3 {[%clk 0:00:27]}  Rb5 {[%clk 0:00:15]} 29. Nd4 {[%clk 0:00:26]}  Rd5 {[%clk 0:00:11]} 30. Ne6 {[%clk 0:00:26]}  Qd7 {[%clk 0:00:09]} 31. Nxd8 {[%clk 0:00:24]}  Rxd2 {[%clk 0:00:07]} 32. Qxd2 {[%clk 0:00:23]}  Qxd8 {[%clk 0:00:08]} 33. Qxd6 {[%clk 0:00:23]}  Qa5 {[%clk 0:00:08]} 34. b4 {[%clk 0:00:18]}  Qb5 {[%clk 0:00:07]} 35. Bxe5 {[%clk 0:00:14]}  Bxe5 {[%clk 0:00:07]} 36. Qe6+ {[%clk 0:00:14]}  Kh7 {[%clk 0:00:06]} 37. Qb3 {[%clk 0:00:12]}  Qe2 {[%clk 0:00:05]} 38. c4 {[%clk 0:00:10]}  Bd4 {[%clk 0:00:04]} 39. Qf3 {[%clk 0:00:10]}  Bxf2+ {[%clk 0:00:03]} 40. Kh1 {[%clk 0:00:08]}  Qxa2 {[%clk 0:00:03]} 41. Qxf5+ {[%clk 0:00:07]}  Kh6 {[%clk 0:00:02]} 42. Rd6+ {[%clk 0:00:07]}  g6 {[%clk 0:00:02]} 43. Qxg6# {[%clk 0:00:07]} 1-0


[Site "https://www.chess.com"]

[Event "Titled Tuesday Blitz May 03 Early 2022"]
[White "Vasquez Schroeder, Rodrigo"]
[Black "Piesik, Piotr"]
[WhiteFideId "3400042"]
[BlackFideId "1136194"]
[WhiteElo "2561"]
[BlackElo "2190"]
[Result "0-1"]
[Round "04"]
[TimeControl "180+1"]
[Date "2022.05.03"]
[WhiteClock "0:00:59"]
[BlackClock "0:00:52"]

1. e4 {[%clk 0:03:00]}  g6 {[%clk 0:02:59]} 2. d4 {[%clk 0:03:00]}  Bg7 {[%clk 0:02:59]} 3. Nf3 {[%clk 0:03:01]}  c6 {[%clk 0:03:00]} 4. Bc4 {[%clk 0:03:01]}  d5 {[%clk 0:03:00]} 5. exd5 {[%clk 0:03:02]}  cxd5 {[%clk 0:03:01]} 6. Bb3 {[%clk 0:03:02]}  Nc6 {[%clk 0:03:01]} 7. h3 {[%clk 0:03:03]}  Nf6 {[%clk 0:03:00]} 8. c3 {[%clk 0:03:03]}  O-O {[%clk 0:02:59]} 9. O-O {[%clk 0:03:04]}  Bf5 {[%clk 0:02:58]} 10. Re1 {[%clk 0:03:04]}  Ne4 {[%clk 0:02:57]} 11. Nbd2 {[%clk 0:03:02]}  Na5 {[%clk 0:02:52]} 12. Bc2 {[%clk 0:03:01]}  Nxd2 {[%clk 0:02:52]} 13. Qxd2 {[%clk 0:02:58]}  Nc4 {[%clk 0:02:51]} 14. Qe2 {[%clk 0:02:58]}  Bxc2 {[%clk 0:02:51]} 15. Qxc2 {[%clk 0:02:59]}  b5 {[%clk 0:02:49]} 16. Bg5 {[%clk 0:02:53]}  Re8 {[%clk 0:02:49]} 17. Re2 {[%clk 0:02:53]}  Qd7 {[%clk 0:02:47]} 18. Rae1 {[%clk 0:02:51]}  e6 {[%clk 0:02:48]} 19. Ne5 {[%clk 0:02:50]}  Nxe5 {[%clk 0:02:45]} 20. dxe5 {[%clk 0:02:50]}  a5 {[%clk 0:02:45]} 21. Qd3 {[%clk 0:02:49]}  b4 {[%clk 0:02:45]} 22. c4 {[%clk 0:02:46]}  Rac8 {[%clk 0:02:24]} 23. Rd2 {[%clk 0:02:34]}  h6 {[%clk 0:02:13]} 24. Bh4 {[%clk 0:02:30]}  g5 {[%clk 0:02:13]} 25. Bg3 {[%clk 0:02:30]}  Red8 {[%clk 0:02:11]} 26. cxd5 {[%clk 0:02:19]}  Qxd5 {[%clk 0:02:11]} 27. Qxd5 {[%clk 0:02:17]}  Rxd5 {[%clk 0:02:12]} 28. Rxd5 {[%clk 0:02:15]}  exd5 {[%clk 0:02:13]} 29. Rd1 {[%clk 0:02:15]}  Rc5 {[%clk 0:02:05]} 30. b3 {[%clk 0:01:58]}  Kf8 {[%clk 0:02:01]} 31. f4 {[%clk 0:01:55]}  gxf4 {[%clk 0:01:59]} 32. Bxf4 {[%clk 0:01:55]}  Ke7 {[%clk 0:01:59]} 33. Be3 {[%clk 0:01:53]}  Rb5 {[%clk 0:01:51]} 34. Bd4 {[%clk 0:01:45]}  Ke6 {[%clk 0:01:46]} 35. Rf1 {[%clk 0:01:33]}  Rb8 {[%clk 0:01:39]} 36. Rf4 {[%clk 0:01:31]}  Rc8 {[%clk 0:01:36]} 37. Rf2 {[%clk 0:01:19]}  Rc1+ {[%clk 0:01:33]} 38. Kh2 {[%clk 0:01:18]}  Bxe5+ {[%clk 0:01:33]} 39. Bxe5 {[%clk 0:01:18]}  Kxe5 {[%clk 0:01:34]} 40. Rxf7 {[%clk 0:01:18]}  Rc2 {[%clk 0:01:34]} 41. Re7+ {[%clk 0:01:15]}  Kf4 {[%clk 0:01:31]} 42. Rd7 {[%clk 0:01:13]}  Ke4 {[%clk 0:01:30]} 43. Re7+ {[%clk 0:01:13]}  Kd3 {[%clk 0:01:31]} 44. Re5 {[%clk 0:01:11]}  Kd4 {[%clk 0:01:14]} 45. Rh5 {[%clk 0:01:09]}  Rxa2 {[%clk 0:01:14]} 46. Rxh6 {[%clk 0:01:10]}  Kc3 {[%clk 0:01:13]} 47. Rd6 {[%clk 0:01:09]}  d4 {[%clk 0:01:11]} 48. h4 {[%clk 0:01:09]}  d3 {[%clk 0:01:08]} 49. h5 {[%clk 0:01:09]}  Re2 {[%clk 0:01:07]} 50. h6 {[%clk 0:01:07]}  d2 {[%clk 0:01:00]} 51. h7 {[%clk 0:01:04]}  Re8 {[%clk 0:01:00]} 52. g4 {[%clk 0:01:04]}  Rh8 {[%clk 0:00:53]} 53. Kg3 {[%clk 0:01:04]}  Rxh7 {[%clk 0:00:53]} 54. Kg2 {[%clk 0:00:59]}  Kc2 {[%clk 0:00:52]} 0-1


[Site "https://www.chess.com"]